[Event "Late-Titled-Tuesday-Blitz-June-18-2024"]
[Site "Chess.com"]
[Date "2024.06.18"]
[Round "10"]
[White "ChessSwole"]
[Black "Barboval"]
[Result "1-0"]
[WhiteElo "2732"]
[BlackElo "2544"]
[TimeControl "180+1"]
[EndTime "15:51:33 PDT"]
[Termination "ChessSwole won by resignation"]

1. e4 {[%clk 0:03:00.9]} 1... Nf6 {[%clk 0:03:00.9]} 2. Nc3 {[%clk 0:02:59.4]}
2... d5 {[%clk 0:03:00.9]} 3. exd5 {[%clk 0:02:54.7]} 3... Nxd5 {[%clk
0:03:01.8]} 4. Nf3 {[%clk 0:02:55.2]} 4... Bg4 {[%clk 0:03:01.6]} 5. h3 {[%clk
0:02:53.1]} 5... Bh5 {[%clk 0:03:01.1]} 6. d3 {[%clk 0:02:39.9]} 6... e6 {[%clk
0:03:00.8]} 7. Nxd5 {[%clk 0:02:35.7]} 7... Qxd5 {[%clk 0:02:59.4]} 8. g4 {[%clk
0:02:36.2]} 8... Bg6 {[%clk 0:02:57.1]} 9. Bg2 {[%clk 0:02:36.7]} 9... Nc6
{[%clk 0:02:50.5]} 10. Nh4 {[%clk 0:02:32.8]} 10... Qa5+ {[%clk 0:02:38.5]} 11.
Bd2 {[%clk 0:02:31]} 11... Qb6 {[%clk 0:02:39.2]} 12. O-O {[%clk 0:02:24.1]}
12... Be7 {[%clk 0:02:22.8]} 13. Nxg6 {[%clk 0:02:22.3]} 13... hxg6 {[%clk
0:02:23.7]} 14. Be3 {[%clk 0:02:14.9]} 14... Bc5 {[%clk 0:02:23.6]} 15. d4
{[%clk 0:02:11.4]} 15... Nxd4 {[%clk 0:02:12.8]} 16. b4 {[%clk 0:02:11.2]} 16...
Qxb4 {[%clk 0:02:11.3]} 17. c3 {[%clk 0:02:09.2]} 17... Qxc3 {[%clk 0:02:09.2]}
18. Rc1 {[%clk 0:02:09.3]} 18... Qb4 {[%clk 0:02:06.3]} 19. Rxc5 {[%clk
0:02:08.7]} 19... Qxc5 {[%clk 0:02:07.2]} 20. Bxd4 {[%clk 0:02:09.2]} 20... Qd6
{[%clk 0:01:59.6]} 21. Bxg7 {[%clk 0:02:06.8]} 21... Qxd1 {[%clk 0:01:58.9]} 22.
Rxd1 {[%clk 0:02:07.7]} 22... Rg8 {[%clk 0:01:59.2]} 23. Bxb7 {[%clk 0:02:05.3]}
1-0

[Event "Late-Titled-Tuesday-Blitz-June-18-2024"]
[Site "Chess.com"]
[Date "2024.06.18"]
[Round "10"]
[White "ploxoi"]
[Black "Beaterawn"]
[Result "0-1"]
[WhiteElo "2482"]
[BlackElo "2385"]
[TimeControl "180+1"]
[EndTime "15:51:38 PDT"]
[Termination "Beaterawn won by resignation"]

1. d4 {[%clk 0:03:00.9]} 1... f5 {[%clk 0:02:59.6]} 2. Nf3 {[%clk 0:02:59.1]}
2... Nf6 {[%clk 0:02:59.8]} 3. g3 {[%clk 0:02:56.3]} 3... g6 {[%clk 0:02:59.5]}
4. Bg2 {[%clk 0:02:56.9]} 4... Bg7 {[%clk 0:03:00.1]} 5. O-O {[%clk 0:02:55.6]}
5... O-O {[%clk 0:03:00.7]} 6. c4 {[%clk 0:02:51.5]} 6... c6 {[%clk 0:03:00.7]}
7. Nc3 {[%clk 0:02:49.9]} 7... d6 {[%clk 0:03:01.1]} 8. Re1 {[%clk 0:02:46]}
8... Ne4 {[%clk 0:03:01.1]} 9. Qc2 {[%clk 0:02:42.6]} 9... d5 {[%clk 0:02:59.1]}
10. Bf4 {[%clk 0:02:38.3]} 10... e6 {[%clk 0:02:27.1]} 11. Be5 {[%clk
0:02:35.2]} 11... Nd7 {[%clk 0:02:26.9]} 12. Bxg7 {[%clk 0:02:34.8]} 12... Kxg7
{[%clk 0:02:27.8]} 13. Rad1 {[%clk 0:02:32]} 13... Ndf6 {[%clk 0:02:22.4]} 14.
Ne5 {[%clk 0:02:30.8]} 14... Nd7 {[%clk 0:02:12.3]} 15. Nxd7 {[%clk 0:02:26.3]}
15... Bxd7 {[%clk 0:02:13.2]} 16. f3 {[%clk 0:02:26.8]} 16... Nf6 {[%clk
0:02:09.5]} 17. e4 {[%clk 0:02:24.6]} 17... fxe4 {[%clk 0:02:09]} 18. fxe4
{[%clk 0:02:24.6]} 18... dxc4 {[%clk 0:02:08.8]} 19. a4 {[%clk 0:02:20.5]} 19...
Ng4 {[%clk 0:02:01.4]} 20. Qe2 {[%clk 0:02:15.2]} 20... e5 {[%clk 0:01:53.1]}
21. dxe5 {[%clk 0:02:07]} 21... Qb6+ {[%clk 0:01:52.8]} 22. Kh1 {[%clk
0:02:03.5]} 22... Nf2+ {[%clk 0:01:52.8]} 23. Kg1 {[%clk 0:02:03.7]} 23... Nxd1+
{[%clk 0:01:52.9]} 0-1

[Event "Late-Titled-Tuesday-Blitz-June-18-2024"]
[Site "Chess.com"]
[Date "2024.06.18"]
[Round "10"]
[White "Legit"]
[Black "tptagain"]
[Result "0-1"]
[WhiteElo "2779"]
[BlackElo "2948"]
[TimeControl "180+1"]
[EndTime "15:51:56 PDT"]
[Termination "tptagain won by resignation"]

1. d4 {[%clk 0:03:00.9]} 1... d5 {[%clk 0:02:59.7]} 2. c4 {[%clk 0:03:00.5]}
2... e6 {[%clk 0:03:00.1]} 3. Nf3 {[%clk 0:03:00.3]} 3... c6 {[%clk 0:03:00.3]}
4. e3 {[%clk 0:02:46.7]} 4... Bd6 {[%clk 0:02:57.3]} 5. b3 {[%clk 0:02:40.1]}
5... Nf6 {[%clk 0:02:56.5]} 6. Nbd2 {[%clk 0:02:38]} 6... Ne4 {[%clk 0:02:55.3]}
7. Bd3 {[%clk 0:02:18.8]} 7... f5 {[%clk 0:02:55.1]} 8. O-O {[%clk 0:02:04.7]}
8... Nd7 {[%clk 0:02:54.8]} 9. Bb2 {[%clk 0:02:01.6]} 9... Qf6 {[%clk
0:02:54.8]} 10. Ne1 {[%clk 0:01:44.1]} 10... Qh6 {[%clk 0:02:44.6]} 11. g3
{[%clk 0:01:34.3]} 11... O-O {[%clk 0:02:40.6]} 12. Ng2 {[%clk 0:01:29.4]} 12...
Ndf6 {[%clk 0:02:33.1]} 13. f3 {[%clk 0:01:20.1]} 13... Nxg3 {[%clk 0:02:30.6]}
14. hxg3 {[%clk 0:01:20.2]} 14... Bxg3 {[%clk 0:02:31.4]} 15. Rf2 {[%clk
0:01:20.9]} 15... Qh2+ {[%clk 0:02:22.9]} 16. Kf1 {[%clk 0:01:20.8]} 16... Bxf2
{[%clk 0:02:22.9]} 17. Kxf2 {[%clk 0:01:21.7]} 17... Ng4+ {[%clk 0:02:22.5]} 18.
fxg4 {[%clk 0:01:09.7]} 18... fxg4+ {[%clk 0:02:23.4]} 19. Ke1 {[%clk
0:01:05.2]} 19... Qg3+ {[%clk 0:02:23]} 0-1

[Event "Late-Titled-Tuesday-Blitz-June-18-2024"]
[Site "Chess.com"]
[Date "2024.06.18"]
[Round "10"]
[White "OverallStranger"]
[Black "evgchess5"]
[Result "0-1"]
[WhiteElo "2437"]
[BlackElo "2929"]
[TimeControl "180+1"]
[EndTime "15:52:41 PDT"]
[Termination "evgchess5 won by resignation"]

1. e4 {[%clk 0:03:00.9]} 1... c5 {[%clk 0:02:58.9]} 2. Nc3 {[%clk 0:03:01]} 2...
e6 {[%clk 0:02:58.8]} 3. f4 {[%clk 0:03:01.1]} 3... Nc6 {[%clk 0:02:56.6]} 4.
Nf3 {[%clk 0:03:01.5]} 4... a6 {[%clk 0:02:55.9]} 5. g3 {[%clk 0:02:58]} 5... d5
{[%clk 0:02:55.8]} 6. d3 {[%clk 0:02:58.1]} 6... d4 {[%clk 0:02:51]} 7. Ne2
{[%clk 0:02:54.4]} 7... f5 {[%clk 0:02:50.9]} 8. Bg2 {[%clk 0:02:46.4]} 8... Nf6
{[%clk 0:02:49.9]} 9. O-O {[%clk 0:02:33.3]} 9... Be7 {[%clk 0:02:45.8]} 10. Ne5
{[%clk 0:02:24.4]} 10... O-O {[%clk 0:02:25.5]} 11. exf5 {[%clk 0:02:18.7]}
11... exf5 {[%clk 0:02:24.4]} 12. Nxc6 {[%clk 0:02:13.7]} 12... bxc6 {[%clk
0:02:24.4]} 13. Bxc6 {[%clk 0:02:14.2]} 13... Ra7 {[%clk 0:02:21.3]} 14. Kh1
{[%clk 0:01:51.1]} 14... Bd6 {[%clk 0:02:12.4]} 15. Ng1 {[%clk 0:01:48.2]} 15...
Re7 {[%clk 0:02:09.7]} 16. Bf3 {[%clk 0:01:36.9]} 16... Ng4 {[%clk 0:02:03.1]}
17. Bxg4 {[%clk 0:01:36.9]} 17... fxg4 {[%clk 0:02:02.1]} 18. Qd2 {[%clk
0:01:35.8]} 18... Bb7+ {[%clk 0:01:58.9]} 19. Nf3 {[%clk 0:01:35.5]} 19... Bxf3+
{[%clk 0:01:53.4]} 20. Kg1 {[%clk 0:01:34.5]} 20... Re2 {[%clk 0:01:52.2]} 21.
Rxf3 {[%clk 0:01:18.5]} 21... Rxd2 {[%clk 0:01:46.4]} 22. Rf2 {[%clk 0:01:10.9]}
22... Rd1+ {[%clk 0:01:43]} 23. Kg2 {[%clk 0:01:10.7]} 23... Qa8+ {[%clk
0:01:41.7]} 0-1

[Event "Late-Titled-Tuesday-Blitz-June-18-2024"]
[Site "Chess.com"]
[Date "2024.06.18"]
[Round "10"]
[White "Nicolik"]
[Black "Matalon"]
[Result "1-0"]
[WhiteElo "2631"]
[BlackElo "2484"]
[TimeControl "180+1"]
[EndTime "15:52:47 PDT"]
[Termination "Nicolik won on time"]

1. d4 {[%clk 0:03:00.9]} 1... Nf6 {[%clk 0:02:55.6]} 2. Nc3 {[%clk 0:03:00.4]}
2... c5 {[%clk 0:02:54.5]} 3. d5 {[%clk 0:03:00.1]} 3... d6 {[%clk 0:02:54.2]}
4. e4 {[%clk 0:03:00.4]} 4... g6 {[%clk 0:02:54.2]} 5. Bb5+ {[%clk 0:03:00.6]}
5... Nfd7 {[%clk 0:02:52.7]} 6. a4 {[%clk 0:03:01.2]} 6... Bg7 {[%clk
0:02:52.8]} 7. Nf3 {[%clk 0:03:01.2]} 7... O-O {[%clk 0:02:52.7]} 8. O-O {[%clk
0:03:01.6]} 8... Na6 {[%clk 0:02:51.7]} 9. Bf4 {[%clk 0:03:00.7]} 9... Nc7
{[%clk 0:02:51.4]} 10. Re1 {[%clk 0:03:00.1]} 10... b6 {[%clk 0:02:49.5]} 11.
Bc6 {[%clk 0:02:59.6]} 11... Rb8 {[%clk 0:02:49.2]} 12. e5 {[%clk 0:03:00.3]}
12... dxe5 {[%clk 0:02:34.7]} 13. Nxe5 {[%clk 0:03:01.2]} 13... Nxe5 {[%clk
0:02:34.7]} 14. Bxe5 {[%clk 0:03:01.6]} 14... Bxe5 {[%clk 0:02:34.6]} 15. Rxe5
{[%clk 0:03:02.5]} 15... Qd6 {[%clk 0:02:33.3]} 16. Qe2 {[%clk 0:03:00.8]} 16...
e6 {[%clk 0:02:32.1]} 17. Nb5 {[%clk 0:02:59.9]} 17... Qd8 {[%clk 0:02:25.6]}
18. c4 {[%clk 0:02:34.5]} 1-0

[Event "Late-Titled-Tuesday-Blitz-June-18-2024"]
[Site "Chess.com"]
[Date "2024.06.18"]
[Round "10"]
[White "GothamChess"]
[Black "ArmanGhevondyanchess"]
[Result "0-1"]
[WhiteElo "2716"]
[BlackElo "2616"]
[TimeControl "180+1"]
[EndTime "15:52:53 PDT"]
[Termination "ArmanGhevondyanchess won by resignation"]

1. e4 {[%clk 0:03:00.9]} 1... c5 {[%clk 0:02:59.8]} 2. a3 {[%clk 0:03:00.8]}
2... d5 {[%clk 0:02:58.1]} 3. exd5 {[%clk 0:03:00.7]} 3... Qxd5 {[%clk 0:02:59]}
4. Nf3 {[%clk 0:03:01.2]} 4... Nf6 {[%clk 0:02:59.1]} 5. Nc3 {[%clk 0:03:00.9]}
5... Qd8 {[%clk 0:02:56.8]} 6. Ne5 {[%clk 0:03:00.6]} 6... e6 {[%clk 0:02:55.3]}
7. Bb5+ {[%clk 0:03:00.5]} 7... Nbd7 {[%clk 0:02:54.5]} 8. O-O {[%clk
0:02:57.9]} 8... Bd6 {[%clk 0:02:52.3]} 9. d4 {[%clk 0:02:56.3]} 9... O-O {[%clk
0:02:47.8]} 10. Nxd7 {[%clk 0:02:51]} 10... Bxd7 {[%clk 0:02:47.1]} 11. Bg5
{[%clk 0:02:43.3]} 11... cxd4 {[%clk 0:02:43]} 12. Qxd4 {[%clk 0:02:30.4]} 12...
Bxb5 {[%clk 0:02:42.5]} 13. Nxb5 {[%clk 0:02:31.3]} 13... Be7 {[%clk 0:02:41.3]}
14. Qxd8 {[%clk 0:02:25.2]} 14... Rfxd8 {[%clk 0:02:41.3]} 15. Rfd1 {[%clk
0:02:21.6]} 15... a6 {[%clk 0:02:38.4]} 16. Nc3 {[%clk 0:02:21.8]} 16... h6
{[%clk 0:02:37.4]} 17. Bh4 {[%clk 0:02:19.8]} 17... Rac8 {[%clk 0:02:36.2]} 18.
Rxd8+ {[%clk 0:02:17.5]} 18... Rxd8 {[%clk 0:02:35.8]} 19. Rd1 {[%clk
0:02:18.3]} 19... Rxd1+ {[%clk 0:02:35.8]} 20. Nxd1 {[%clk 0:02:19.2]} 20... g5
{[%clk 0:02:28]} 21. Bg3 {[%clk 0:02:19.6]} 21... Ne4 {[%clk 0:02:26]} 22. Be5
{[%clk 0:02:18.5]} 22... f6 {[%clk 0:02:19.5]} 23. Bd4 {[%clk 0:02:18]} 23... e5
{[%clk 0:02:11.9]} 24. Ba7 {[%clk 0:02:14.4]} 24... Kf7 {[%clk 0:02:02.4]} 25.
f3 {[%clk 0:02:14.8]} 25... Bc5+ {[%clk 0:01:55.4]} 26. Bxc5 {[%clk 0:02:14.5]}
26... Nxc5 {[%clk 0:01:56.3]} 27. g4 {[%clk 0:02:14.5]} 27... e4 {[%clk
0:01:54.3]} 28. Kf2 {[%clk 0:02:14]} 28... exf3 {[%clk 0:01:48.4]} 29. Kxf3
{[%clk 0:02:14.9]} 29... Kg6 {[%clk 0:01:35]} 30. Ne3 {[%clk 0:02:12.5]} 30...
Ne6 {[%clk 0:01:33.4]} 31. Ke4 {[%clk 0:02:11.3]} 31... Nf4 {[%clk 0:01:28.2]}
32. c4 {[%clk 0:02:06]} 32... h5 {[%clk 0:01:26.6]} 33. h4 {[%clk 0:01:58.7]}
33... hxg4 {[%clk 0:01:23.1]} 0-1

[Event "Late-Titled-Tuesday-Blitz-June-18-2024"]
[Site "Chess.com"]
[Date "2024.06.18"]
[Round "10"]
[White "Zurability"]
[Black "vi_pranav"]
[Result "0-1"]
[WhiteElo "2813"]
[BlackElo "3029"]
[TimeControl "180+1"]
[EndTime "15:53:17 PDT"]
[Termination "vi_pranav won by resignation"]

1. e4 {[%clk 0:03:00.9]} 1... e5 {[%clk 0:02:59.8]} 2. Nf3 {[%clk 0:03:00.7]}
2... Nc6 {[%clk 0:02:59.9]} 3. Bc4 {[%clk 0:03:00.7]} 3... Nf6 {[%clk
0:02:59.9]} 4. d3 {[%clk 0:03:01.1]} 4... h6 {[%clk 0:02:59.9]} 5. c3 {[%clk
0:03:01]} 5... d6 {[%clk 0:03:00.4]} 6. Nbd2 {[%clk 0:02:59.6]} 6... g6 {[%clk
0:03:00.5]} 7. Nf1 {[%clk 0:02:54.8]} 7... Bg7 {[%clk 0:03:00.1]} 8. Bb3 {[%clk
0:02:54.8]} 8... O-O {[%clk 0:02:59.7]} 9. Ng3 {[%clk 0:02:55.1]} 9... Be6
{[%clk 0:02:59.8]} 10. Bc2 {[%clk 0:02:54.8]} 10... Re8 {[%clk 0:02:59.7]} 11.
O-O {[%clk 0:02:55]} 11... d5 {[%clk 0:02:59]} 12. Qe2 {[%clk 0:02:45.2]} 12...
a6 {[%clk 0:02:56.7]} 13. h3 {[%clk 0:02:42.1]} 13... Qd7 {[%clk 0:02:55.9]} 14.
Nh2 {[%clk 0:02:28.3]} 14... Rad8 {[%clk 0:02:53]} 15. Qf3 {[%clk 0:02:21.6]}
15... b5 {[%clk 0:02:43]} 16. Bxh6 {[%clk 0:02:08.5]} 16... Bxh6 {[%clk
0:02:23.8]} 17. Qxf6 {[%clk 0:02:07.3]} 17... Bg7 {[%clk 0:02:24.4]} 18. Qf3
{[%clk 0:02:07]} 18... d4 {[%clk 0:02:22.8]} 19. Ne2 {[%clk 0:02:03.8]} 19...
dxc3 {[%clk 0:02:21.6]} 20. bxc3 {[%clk 0:02:04.7]} 20... b4 {[%clk 0:02:22.1]}
21. Ba4 {[%clk 0:01:51.3]} 21... Qd6 {[%clk 0:02:02.5]} 22. Rfc1 {[%clk
0:01:49.9]} 22... bxc3 {[%clk 0:01:50.2]} 23. Rxc3 {[%clk 0:01:40.6]} 23... Nd4
{[%clk 0:01:50.3]} 24. Qe3 {[%clk 0:01:39.3]} 24... Bh6 {[%clk 0:01:42.1]} 25.
Nxd4 {[%clk 0:01:09.9]} 25... Bxe3 {[%clk 0:01:37.3]} 26. Nxe6 {[%clk
0:01:09.8]} 26... Bxf2+ {[%clk 0:01:17.1]} 27. Kxf2 {[%clk 0:01:10]} 27... Rxe6
{[%clk 0:01:17.8]} 28. Rac1 {[%clk 0:01:08.4]} 0-1

[Event "Late-Titled-Tuesday-Blitz-June-18-2024"]
[Site "Chess.com"]
[Date "2024.06.18"]
[Round "10"]
[White "Roland_Garros_2024"]
[Black "jcmesafischer"]
[Result "0-1"]
[WhiteElo "2208"]
[BlackElo "2358"]
[TimeControl "180+1"]
[EndTime "15:53:20 PDT"]
[Termination "jcmesafischer won by resignation"]

1. e4 {[%clk 0:03:00.9]} 1... c5 {[%clk 0:02:56.7]} 2. Nf3 {[%clk 0:03:00.9]}
2... d6 {[%clk 0:02:57.6]} 3. d4 {[%clk 0:03:01.3]} 3... cxd4 {[%clk 0:02:58.5]}
4. Nxd4 {[%clk 0:03:02.1]} 4... Nf6 {[%clk 0:02:59.1]} 5. Nc3 {[%clk 0:03:02.7]}
5... a6 {[%clk 0:02:59.9]} 6. Bg5 {[%clk 0:03:03.1]} 6... e6 {[%clk 0:03:00.1]}
7. f4 {[%clk 0:03:03.3]} 7... Be7 {[%clk 0:03:00.8]} 8. Qf3 {[%clk 0:03:03.8]}
8... Qc7 {[%clk 0:03:01.3]} 9. O-O-O {[%clk 0:03:03.6]} 9... Nbd7 {[%clk
0:03:01.9]} 10. Bd3 {[%clk 0:03:00.8]} 10... b5 {[%clk 0:03:02.1]} 11. Rhe1
{[%clk 0:03:00.6]} 11... Bb7 {[%clk 0:03:02.1]} 12. Nd5 {[%clk 0:03:00.6]} 12...
exd5 {[%clk 0:03:01.8]} 13. Nf5 {[%clk 0:03:00.9]} 13... Kf8 {[%clk 0:02:56.8]}
14. exd5 {[%clk 0:02:58.9]} 14... Bd8 {[%clk 0:02:54.6]} 15. Qg3 {[%clk
0:02:59.2]} 15... Rg8 {[%clk 0:02:30.3]} 16. Nxg7 {[%clk 0:02:42.3]} 16... Rxg7
{[%clk 0:02:18]} 17. Bh6 {[%clk 0:02:34.1]} 17... Nh5 {[%clk 0:02:17.9]} 18. Qe3
{[%clk 0:02:20]} 18... Kg8 {[%clk 0:02:03.7]} 19. Qe8+ {[%clk 0:01:42.9]} 19...
Nf8 {[%clk 0:02:02.2]} 20. Bxg7 {[%clk 0:01:40.3]} 20... Kxg7 {[%clk 0:01:46.1]}
21. Qe4 {[%clk 0:01:28]} 21... Nf6 {[%clk 0:01:45.7]} 22. Qf5 {[%clk 0:01:23.6]}
22... h6 {[%clk 0:01:39.3]} 23. g4 {[%clk 0:01:18.5]} 23... Bc8 {[%clk
0:01:38.9]} 24. Re6 {[%clk 0:00:56.3]} 24... fxe6 {[%clk 0:01:36.8]} 25. dxe6
{[%clk 0:00:43.5]} 25... Bxe6 {[%clk 0:01:37.7]} 0-1

[Event "Late-Titled-Tuesday-Blitz-June-18-2024"]
[Site "Chess.com"]
[Date "2024.06.18"]
[Round "10"]
[White "GoltsevDmitry2000"]
[Black "Journey_to_GrandMaster_YT"]
[Result "1-0"]
[WhiteElo "2735"]
[BlackElo "2626"]
[TimeControl "180+1"]
[EndTime "15:53:26 PDT"]
[Termination "GoltsevDmitry2000 won by resignation"]

1. e4 {[%clk 0:02:55.7]} 1... d6 {[%clk 0:03:00.9]} 2. d4 {[%clk 0:02:55.4]}
2... Nf6 {[%clk 0:03:01.5]} 3. Nc3 {[%clk 0:02:54.8]} 3... e5 {[%clk 0:03:02.1]}
4. dxe5 {[%clk 0:02:55]} 4... dxe5 {[%clk 0:03:03]} 5. Qxd8+ {[%clk 0:02:54.4]}
5... Kxd8 {[%clk 0:03:03.9]} 6. Nf3 {[%clk 0:02:54.8]} 6... Bd6 {[%clk 0:03:03]}
7. Bc4 {[%clk 0:02:53.9]} 7... Ke7 {[%clk 0:03:02.9]} 8. h3 {[%clk 0:02:54.2]}
8... c6 {[%clk 0:03:01.1]} 9. a3 {[%clk 0:02:53.4]} 9... b5 {[%clk 0:03:00.8]}
10. Bb3 {[%clk 0:02:53.1]} 10... Nbd7 {[%clk 0:02:59.3]} 11. Be3 {[%clk
0:02:50.2]} 11... a5 {[%clk 0:02:26.6]} 12. O-O-O {[%clk 0:02:47.4]} 12... b4
{[%clk 0:02:26.2]} 13. Na4 {[%clk 0:02:16.5]} 13... bxa3 {[%clk 0:02:25.5]} 14.
Ng5 {[%clk 0:02:14.6]} 14... Rf8 {[%clk 0:02:13.7]} 15. Nxf7 {[%clk 0:02:11.3]}
15... axb2+ {[%clk 0:02:05.8]} 16. Kxb2 {[%clk 0:02:07.1]} 16... Rb8 {[%clk
0:01:21.6]} 17. Nxd6 {[%clk 0:02:01.6]} 17... Ba6 {[%clk 0:01:04.3]} 18. Nf5+
{[%clk 0:01:58.6]} 18... Kd8 {[%clk 0:00:59.4]} 19. Nxg7 {[%clk 0:01:57.9]}
19... Kc8 {[%clk 0:00:51.8]} 20. Ne6 {[%clk 0:01:57.9]} 20... Rg8 {[%clk
0:00:45.8]} 21. Nec5 {[%clk 0:01:54.6]} 21... Bc4 {[%clk 0:00:39.3]} 22. Nxd7
{[%clk 0:01:52.3]} 22... Nxd7 {[%clk 0:00:38.8]} 23. Rd6 {[%clk 0:01:44.1]}
23... Rxg2 {[%clk 0:00:32.6]} 24. Rxc6+ {[%clk 0:01:42.5]} 1-0

[Event "Late-Titled-Tuesday-Blitz-June-18-2024"]
[Site "Chess.com"]
[Date "2024.06.18"]
[Round "10"]
[White "lamomiajunior"]
[Black "MathiasWomacka"]
[Result "1-0"]
[WhiteElo "2684"]
[BlackElo "2525"]
[TimeControl "180+1"]
[EndTime "15:53:27 PDT"]
[Termination "lamomiajunior won by resignation"]

1. d4 {[%clk 0:03:00.9]} 1... Nf6 {[%clk 0:02:59]} 2. Nc3 {[%clk 0:03:00]} 2...
d5 {[%clk 0:02:58.1]} 3. Bf4 {[%clk 0:02:59.7]} 3... a6 {[%clk 0:02:57.6]} 4. e3
{[%clk 0:02:59.2]} 4... e6 {[%clk 0:02:57.3]} 5. g4 {[%clk 0:02:58.7]} 5... Bb4
{[%clk 0:02:55.4]} 6. Ne2 {[%clk 0:02:58.8]} 6... O-O {[%clk 0:02:55.2]} 7. a3
{[%clk 0:02:58.8]} 7... Be7 {[%clk 0:02:54.3]} 8. g5 {[%clk 0:02:59]} 8... Nh5
{[%clk 0:02:41]} 9. h4 {[%clk 0:02:59.4]} 9... c5 {[%clk 0:02:39.5]} 10. Bh2
{[%clk 0:02:55]} 10... Nc6 {[%clk 0:02:37.7]} 11. Bg2 {[%clk 0:02:45]} 11... g6
{[%clk 0:02:27]} 12. Bf3 {[%clk 0:02:44.4]} 12... Ng7 {[%clk 0:02:27]} 13. Bf4
{[%clk 0:02:41.5]} 13... Bd6 {[%clk 0:02:23.5]} 14. Qd2 {[%clk 0:02:33.7]} 14...
e5 {[%clk 0:02:18.3]} 15. dxe5 {[%clk 0:02:31.6]} 15... Nxe5 {[%clk 0:02:18.7]}
16. Bxd5 {[%clk 0:02:26.4]} 16... Bg4 {[%clk 0:02:02.6]} 17. O-O-O {[%clk
0:01:59.4]} 17... Qe7 {[%clk 0:02:02]} 18. f3 {[%clk 0:01:55]} 18... Nxf3 {[%clk
0:01:42.6]} 19. Bxf3 {[%clk 0:01:48.6]} 19... Bxf4 {[%clk 0:01:42.1]} 20. Nd5
{[%clk 0:01:45.3]} 20... Qe6 {[%clk 0:00:24.7]} 21. Nexf4 {[%clk 0:01:43.5]}
21... Qf5 {[%clk 0:00:24]} 22. Bxg4 {[%clk 0:01:41.9]} 1-0

[Event "Late-Titled-Tuesday-Blitz-June-18-2024"]
[Site "Chess.com"]
[Date "2024.06.18"]
[Round "10"]
[White "BardArtem"]
[Black "Oleksandr_Bortnyk"]
[Result "0-1"]
[WhiteElo "2862"]
[BlackElo "3058"]
[TimeControl "180+1"]
[EndTime "15:53:33 PDT"]
[Termination "Oleksandr_Bortnyk won by resignation"]

1. e4 {[%clk 0:03:00.9]} 1... Nf6 {[%clk 0:02:58]} 2. Nc3 {[%clk 0:02:52.4]}
2... d5 {[%clk 0:02:57.4]} 3. e5 {[%clk 0:02:52.6]} 3... Nfd7 {[%clk 0:02:57.8]}
4. d4 {[%clk 0:02:50.2]} 4... c5 {[%clk 0:02:57.7]} 5. dxc5 {[%clk 0:02:43.8]}
5... e6 {[%clk 0:02:56.3]} 6. f4 {[%clk 0:02:40]} 6... Bxc5 {[%clk 0:02:56]} 7.
Qg4 {[%clk 0:02:40.1]} 7... g6 {[%clk 0:02:48.1]} 8. Nf3 {[%clk 0:02:38.2]} 8...
h5 {[%clk 0:02:44]} 9. Qh3 {[%clk 0:02:36.2]} 9... Nc6 {[%clk 0:02:43.2]} 10. a3
{[%clk 0:02:36.3]} 10... a6 {[%clk 0:02:42.9]} 11. Bd3 {[%clk 0:02:34.9]} 11...
b5 {[%clk 0:02:42.1]} 12. b4 {[%clk 0:02:26.6]} 12... Ba7 {[%clk 0:02:17.9]} 13.
Bd2 {[%clk 0:02:19.3]} 13... Qc7 {[%clk 0:02:11.4]} 14. Ng5 {[%clk 0:02:05.5]}
14... Nd4 {[%clk 0:01:49.9]} 15. Rc1 {[%clk 0:01:42]} 15... Nb6 {[%clk
0:01:42.3]} 16. Ne2 {[%clk 0:01:37.9]} 16... Nxe2 {[%clk 0:01:32.2]} 17. Bxe2
{[%clk 0:01:38.2]} 17... Nc4 {[%clk 0:01:33.1]} 18. Bxc4 {[%clk 0:01:35.9]}
18... Qxc4 {[%clk 0:01:28.9]} 19. Qc3 {[%clk 0:01:16.8]} 19... Bb7 {[%clk
0:01:25.2]} 20. Qxc4 {[%clk 0:00:58]} 20... dxc4 {[%clk 0:01:26.1]} 21. Kf1
{[%clk 0:00:58.9]} 21... Rd8 {[%clk 0:01:22.3]} 22. Be1 {[%clk 0:00:55.2]} 22...
Be3 {[%clk 0:01:21.8]} 23. Rb1 {[%clk 0:00:45.6]} 23... Bxf4 {[%clk 0:01:22]}
24. Bh4 {[%clk 0:00:42.9]} 24... Rd2 {[%clk 0:01:19.6]} 0-1

[Event "Late-Titled-Tuesday-Blitz-June-18-2024"]
[Site "Chess.com"]
[Date "2024.06.18"]
[Round "10"]
[White "malakismayil"]
[Black "scrambleyourbrain"]
[Result "1-0"]
[WhiteElo "2547"]
[BlackElo "2393"]
[TimeControl "180+1"]
[EndTime "15:53:35 PDT"]
[Termination "malakismayil won by resignation"]

1. e4 {[%clk 0:02:58.8]} 1... e5 {[%clk 0:02:57]} 2. Nf3 {[%clk 0:02:57.8]} 2...
Nc6 {[%clk 0:02:57.3]} 3. Bc4 {[%clk 0:02:57.4]} 3... Bc5 {[%clk 0:02:56.7]} 4.
d3 {[%clk 0:02:57.5]} 4... Nf6 {[%clk 0:02:57.1]} 5. Nc3 {[%clk 0:02:57.9]} 5...
O-O {[%clk 0:02:57.3]} 6. O-O {[%clk 0:02:57.6]} 6... h6 {[%clk 0:02:55.9]} 7.
h3 {[%clk 0:02:58.1]} 7... d6 {[%clk 0:02:56.1]} 8. Be3 {[%clk 0:02:58.4]} 8...
Bb6 {[%clk 0:02:55.1]} 9. Qd2 {[%clk 0:02:57.9]} 9... Be6 {[%clk 0:02:55]} 10.
Bb3 {[%clk 0:02:56.7]} 10... Nd4 {[%clk 0:02:53.7]} 11. Bxd4 {[%clk 0:02:54.1]}
11... exd4 {[%clk 0:02:53.9]} 12. Ne2 {[%clk 0:02:54.7]} 12... c5 {[%clk
0:02:53.2]} 13. Nf4 {[%clk 0:02:41.8]} 13... Bxb3 {[%clk 0:02:52.2]} 14. axb3
{[%clk 0:02:42.7]} 14... d5 {[%clk 0:02:51.9]} 15. e5 {[%clk 0:02:40]} 15... Nd7
{[%clk 0:02:51.9]} 16. e6 {[%clk 0:02:40]} 16... Nf6 {[%clk 0:02:51.9]} 17.
exf7+ {[%clk 0:02:25.1]} 17... Rxf7 {[%clk 0:02:50.9]} 18. Ne5 {[%clk
0:02:24.2]} 18... Re7 {[%clk 0:02:49.8]} 19. Nfg6 {[%clk 0:02:15]} 19... Re8
{[%clk 0:02:48.9]} 20. f4 {[%clk 0:02:15.6]} 20... Bc7 {[%clk 0:02:47.2]} 21.
Qf2 {[%clk 0:02:12.8]} 21... Qd6 {[%clk 0:02:46.3]} 22. Rae1 {[%clk 0:02:12.1]}
22... Nh7 {[%clk 0:02:44.3]} 23. g4 {[%clk 0:01:46.6]} 23... Nf8 {[%clk
0:02:42.9]} 24. Nh4 {[%clk 0:01:40.1]} 24... Nd7 {[%clk 0:02:39.7]} 25. Nf5
{[%clk 0:01:39.3]} 25... Qe6 {[%clk 0:02:36.4]} 26. Nf3 {[%clk 0:01:13.9]} 26...
Qf6 {[%clk 0:02:33]} 27. N3h4 {[%clk 0:01:07]} 27... Kh7 {[%clk 0:02:16.4]} 28.
Qg2 {[%clk 0:00:57.9]} 28... Rxe1 {[%clk 0:02:09.8]} 29. Rxe1 {[%clk 0:00:55.2]}
29... Bxf4 {[%clk 0:02:09.8]} 30. Qxd5 {[%clk 0:00:53.4]} 30... Nb6 {[%clk
0:01:51.6]} 31. Qe4 {[%clk 0:00:43.7]} 31... Bg5 {[%clk 0:01:51.6]} 32. Ne7+
{[%clk 0:00:42.2]} 32... Kh8 {[%clk 0:01:50.6]} 33. Nhg6+ {[%clk 0:00:42.5]}
33... Kh7 {[%clk 0:01:51.1]} 34. Nf8+ {[%clk 0:00:42.8]} 1-0